bitfinex/quotes_ETHUSD_20240810
["timestamp","ask_amount","ask_price","bid_price","bid_amount"]
[1723274708261,1.89891,2633.1,2632.2,1.89951]
[1723274708262,1.89909,2632.9,2632.3,1.89943]
[1723274708430,1.89909,2632.9,2632.8,0.07445322]
[1723274708631,1.89909,2632.9,2632.4,0.379892]
[1723274708848,1.89909,2632.9,2632.5,0.07447813]
[1723274709068,1.89891,2633.1,2632.5,0.07447813]
[1723274709069,1.89898,2633.0,2632.5,0.07447813]
[1723274710278,0.379789,2633.0,2632.5,0.07447813]
[1723274710471,1.89923,2632.7,2632.5,0.07447813]
[1723274710768,1.89923,2632.7,2632.1,4.17741]
[1723274710966,1.89908,2632.9,2632.6,0.07450546]
[1723274711262,1.89893,2633.1,2632.2,2.507245]
[1723274711263,1.89893,2633.1,2632.7,0.07479629]
[1723274711464,1.89908,2632.9,2632.7,0.07479629]
[1723274711665,1.89908,2632.9,2632.2,2.507205]
[1723274711962,1.89916,2632.8,2632.3,0.4785005]
[1723274712174,1.89916,2632.8,2632.3,0.55333]
[1723274713073,1.89925,2632.7,2632.3,0.0748295]
[1723274713459,1.89925,2632.7,2632.1,4.17741]
[1723274713789,1.89925,2632.7,2632.4,0.07487106]
[1723274713968,1.89925,2632.7,2632.5,0.074934]
[1723274714279,1.89925,2632.7,2632.1,4.80431371]
[1723274714692,3.79849,2632.7,2632.1,4.80431371]
[1723274715082,1.89924,2632.7,2632.1,4.80431371]
[1723274715246,1.89924,2632.7,2632.2,0.48043137]
[1723274716744,1.89907,2632.9,2632.2,0.48043137]
[1723274716944,1.89907,2632.9,2632.3,1.97443485]
[1723274717362,1.89916,2632.8,2632.3,0.07496485]
[1723274717565,1.89916,2632.8,2632.2,2.37993137]
[1723274717782,1.89916,2632.8,2632.3,0.07496485]
[1723274718086,1.89916,2632.8,2632.3,0.65572914]
[1723274718386,1.89916,2632.8,2632.4,0.07495655]
[1723274719173,1.89907,2632.9,2632.4,0.07495655]
[1723274719787,3.79817,2632.9,2632.4,0.07495655]
[1723274720178,1.89907,2632.9,2632.4,0.07495655]
[1723274720369,1.89907,2632.9,2632.4,2.23735212]
[1723274721564,1.89907,2632.9,2632.4,0.33797212]
[1723274721977,3.895,2633.3,2632.6,2.2778]
[1723274722173,3.895,2633.3,2632.7,0.07492452]
[1723274722375,1.89884,2633.2,2632.7,1.97406452]
[1723274723398,1.89897,2633.0,2632.7,0.07492452]
[1723274723972,1.89897,2633.0,2632.5,1.89929]
[1723274724207,1.89913,2632.8,2632.4,0.26301557]
[1723274724501,1.89897,2633.0,2632.5,0.07483427]
[1723274724999,1.89897,2633.0,2632.3,1.89942]
[1723274725000,1.89897,2633.0,2632.6,0.07482597]
[1723274725363,1.89897,2633.0,2632.3,1.89942]
[1723274725599,1.89908,2632.9,2632.3,1.89942]
[1723274725765,1.89908,2632.9,2632.3,2.27932]
[1723274725965,1.89908,2632.9,2632.4,0.07484257]
[1723274727012,1.89897,2633.0,2632.4,0.07484257]
[1723274727169,1.89897,2633.0,2632.4,1.97419257]
[1723274727368,3.79799,2633.0,2632.4,1.97419257]
[1723274727562,3.79799,2633.0,2632.4,2.39954383]
[1723274727563,1.89897,2633.0,2632.4,2.39954383]
[1723274728907,1.89897,2633.0,2632.5,1.8993]
[1723274729200,1.89897,2633.0,2632.6,0.07489008]
[1723274730202,3.895,2633.3,2632.7,1.89914]
[1723274730378,7.29,2633.5,2632.7,1.89914]
[1723274730703,0.729,2633.4,2632.8,0.07485211]
[1723274731071,0.729,2633.4,2632.7,1.89914]
[1723274731471,1.89883,2633.2,2632.8,0.07485211]
[1723274731779,1.89883,2633.2,2632.7,1.89914]
[1723274731977,1.89894,2633.1,2632.5,1.8993]
[1723274732309,1.89899,2633.0,2632.6,0.07486871]
[1723274732507,3.79801,2633.0,2632.6,0.07486871]
[1723274732805,1.89899,2633.0,2632.4,4.15679]
[1723274733099,1.89904,2632.9,2632.4,2.2574]
[1723274733300,1.89904,2632.9,2632.5,0.07459918]
[1723274734607,0.618763,2632.9,2632.5,0.07459918]
[1723274734805,1.89903,2633.0,2632.5,0.07459918]
[1723274735174,1.89903,2633.0,2631.9,3.19188299]
[1723274735374,1.89903,2633.0,2631.9,0.19188299]
[1723274735598,1.89903,2633.0,2632.0,0.07476179]
[1723274735872,1.89901,2633.0,2632.1,2.2574]
[1723274736072,3.79803,2633.0,2632.4,1.89939]
[1723274736311,3.79803,2633.0,2632.3,1.89943]
[1723274736473,1.89905,2632.9,2632.5,0.07472028]
[1723274736812,1.89913,2632.8,2632.6,0.07471197]
[1723274736998,1.89913,2632.8,2632.3,2.52839262]
[1723274737303,1.89913,2632.8,2632.4,0.07474282]
[1723274743093,1.89917,2632.8,2632.4,0.07474282]
[1723274743691,3.79814,2632.9,2632.4,0.33506336]
[1723274743886,1.89913,2632.8,2632.4,0.07474282]
[1723274744092,1.89905,2632.9,2632.4,0.07474282]
[1723274744983,3.79815,2632.9,2632.4,0.07474282]
[1723274746082,1.89912,2632.8,2632.4,0.07474282]
[1723274747687,3.52212,2632.8,2632.4,0.07474282]
[1723274750187,1.623,2632.8,2632.4,0.07474282]
[1723274750388,1.623,2632.8,2632.4,0.33506036]
[1723274752124,3.52212,2632.8,2632.4,0.33506036]
[1723274752336,3.52212,2632.8,2632.4,0.07474282]
[1723274752623,1.89923,2632.7,2632.4,0.07474282]
[1723274752933,1.89923,2632.7,2632.2,1.89954]
[1723274753108,1.89923,2632.7,2632.5,0.07496249]
[1723274753425,1.89923,2632.7,2632.6,0.07495419]
[1723274753626,1.89923,2632.7,2632.2,0.605652]
[1723274753923,1.89923,2632.7,2632.3,0.07497909]
[1723274754424,1.89923,2632.7,2632.4,0.07497079]
[1723274754625,1.89923,2632.7,2632.2,0.605652]
[1723274754830,1.89923,2632.7,2632.3,0.07497909]
[1723274755123,1.89923,2632.7,2632.2,0.605652]
[1723274755325,1.89923,2632.7,2632.4,0.07497079]
[1723274755489,1.89923,2632.7,2632.3,0.07497909]
[1723274755688,1.89923,2632.7,2632.5,0.07496249]
[1723274755912,1.89923,2632.7,2632.4,0.07497079]
[1723274756126,1.89923,2632.7,2632.6,0.07495419]
[1723274756327,1.89923,2632.7,2632.5,0.07496249]
[1723274756535,1.89923,2632.7,2632.6,0.07495419]
[1723274756822,1.89923,2632.7,2632.2,0.605652]
[1723274757028,3.52246,2632.4,2632.3,0.07265733]
[1723274757390,3.52246,2632.4,2631.9,0.1257593]
[1723274758015,3.52246,2632.4,2632.0,0.06785941]
[1723274758296,1.89959,2632.2,2632.0,0.06785941]
[1723274759041,1.89959,2632.2,2632.0,0.01785941]
[1723274759250,1.89959,2632.2,2632.0,0.06785111]
[1723274759416,1.623,2632.1,2632.0,0.06785111]
[1723274763049,1.89913,2632.8,2632.0,0.06785111]
[1723274763050,4.24625,2632.4,2632.0,0.06785111]
[1723274763254,2.3468,2632.7,2632.0,0.06785111]
[1723274763551,1.623,2632.6,2632.3,2.4947]
[1723274763706,1.623,2632.6,2632.4,1.8994]
[1723274763912,1.623,2632.6,2632.4,0.06615953]
[1723274764223,1.89905,2632.9,2632.4,0.06615953]
[1723274764434,1.623,2632.6,2632.4,0.06615953]
[1723274764947,3.874472,2632.6,2632.4,0.06615953]
[1723274765260,3.874472,2632.6,2632.0,2.4947]
[1723274765261,1.8994,2632.4,2631.9,0.1257593]
[1723274765420,1.623,2632.2,2632.0,0.06619274]
[1723274765751,1.623,2632.5,2632.2,2.4947]
[1723274765927,1.623,2632.5,2632.2,4.42294123]
[1723274766129,1.623,2632.5,2632.3,0.06616783]
[1723274766521,1.623,2632.5,2632.2,2.4947]
[1723274766860,1.623,2632.5,2632.3,0.06616783]
[1723274767066,1.623,2632.5,2632.2,4.39423]
[1723274767232,1.623,2632.5,2632.3,0.06616783]
[1723274767428,1.623,2632.5,2632.0,1.89967]
[1723274767841,3.79861,2632.6,2632.1,0.06618444]
[1723274768147,1.89933,2632.5,2631.9,2.0254893]
[1723274768461,1.89945,2632.4,2632.2,0.06617614]
[1723274768656,1.89945,2632.4,2631.9,0.1257593]
[1723274768964,1.89945,2632.4,2632.0,0.06619274]
[1723274769174,3.79891,2632.4,2632.0,0.06619274]
[1723274769659,1.89953,2632.3,2632.0,0.06619274]
[1723274770153,2.3173272,2632.4,2632.0,0.06619274]
[1723274770154,1.89956,2632.2,2632.0,0.06619274]
[1723274771757,2.3173272,2632.4,2632.0,0.06619274]
[1723274772547,1.89962,2632.1,2632.0,0.06619274]
[1723274772820,5.79451,2632.3,2631.9,0.1257593]
[1723274773029,1.89951,2632.3,2631.9,0.1257593]
[1723274773233,1.89951,2632.3,2632.0,0.06634218]
[1723274773945,1.89962,2632.1,2632.0,0.06634218]
[1723274774142,2.279533,2632.1,2632.0,0.06634218]
[1723274774347,1.89962,2632.1,2632.0,0.06634218]
[1723274774722,1.89955,2632.2,2632.0,0.06634218]
[1723274774964,1.89962,2632.1,2632.0,0.06634218]
[1723274775127,1.89955,2632.2,2632.0,0.06634218]
[1723274775326,2.32123672,2632.2,2632.0,0.06634218]
[1723274775529,4.22084672,2632.2,2632.0,0.06634218]
[1723274775754,1.89962,2632.1,2632.0,0.06634218]
[1723274777526,2.32123672,2632.2,2632.0,0.06634218]
[1723274777719,1.89962,2632.1,2632.0,0.06634218]
[1723274777926,0.65680567,2632.1,2632.0,0.06634218]
[1723274778158,2.55642567,2632.1,2632.0,0.06634218]
[1723274778533,0.65680567,2632.1,2632.0,0.06634218]
[1723274778737,2.55642567,2632.1,2632.0,0.06634218]
[1723274779564,0.65680567,2632.1,2632.0,0.06634218]
[1723274780268,2.3172872,2632.4,2632.0,0.06634218]
[1723274780766,2.3172872,2632.4,2632.0,0.06543113]
[1723274780921,1.89955,2632.2,2632.0,0.06543113]
[1723274781358,2.3172872,2632.4,2632.0,0.06543113]
[1723274781359,4.2167372,2632.4,2632.0,0.06543113]
[1723274781555,0.42167372,2632.3,2632.0,0.06543113]
[1723274781758,0.42167372,2632.3,2631.9,0.1257593]
[1723274782857,2.32119372,2632.3,2631.9,0.1257593]
[1723274783053,1.89956,2632.2,2631.9,0.1257593]
[1723274783468,1.89956,2632.2,2632.0,0.06516974]
[1723274783759,2.36341209,2632.2,2632.0,0.06516974]
[1723274784668,0.46385209,2632.2,2632.0,0.06516974]
[1723274784921,4.2167472,2632.4,2632.0,0.06516974]
[1723274785207,1.89921,2632.7,2632.2,1.89952]
[1723274785369,1.89921,2632.7,2632.2,2.53047097]
[1723274785568,1.89921,2632.7,2632.1,0.07587831]
[1723274785765,3.79845,2632.7,2632.3,0.06532272]
[1723274785993,1.89921,2632.7,2632.2,0.06533103]
[1723274786199,1.89933,2632.5,2631.9,0.1257593]
[1723274786404,1.89948,2632.3,2631.9,0.1257593]
[1723274787291,1.89956,2632.2,2631.9,0.1257593]
[1723274787469,1.89948,2632.3,2631.9,0.1257593]
[1723274787670,2.279365,2632.3,2631.9,0.1257593]
[1723274788291,2.279365,2632.3,2632.0,0.06296993]
[1723274788494,1.108845,2632.6,2632.0,0.06296993]
[1723274789080,1.89933,2632.5,2632.0,0.06296993]
[1723274789681,1.108845,2632.6,2632.0,0.06296993]
[1723274789682,1.623,2632.4,2632.0,0.06296993]
[1723274790002,1.623,2632.4,2632.2,1.89953]
[1723274790409,1.623,2632.4,2632.3,0.0628455]
[1723274790812,7.29,2632.8,2632.2,1.89953]
[1723274791118,1.623,2632.5,2632.3,0.06075749]
[1723274791470,1.623,2632.5,2632.2,1.89953]
[1723274791698,1.623,2632.5,2632.3,0.06075038]
[1723274791908,1.623,2632.5,2632.1,4.34476]
[1723274792107,1.623,2632.5,2632.2,0.06075868]
[1723274792740,1.623,2632.3,2632.2,0.06075868]
[1723274793548,1.975241,2632.3,2632.2,0.06073025]
[1723274793998,1.975241,2632.3,2631.9,0.1257593]
[1723274794534,1.89941,2632.4,2632.0,0.06074686]
[1723274794695,1.623,2632.2,2632.0,0.06074686]
[1723274810439,2.3472,2632.6,2632.0,0.06074686]
[1723274810644,1.623,2632.3,2632.0,0.06074686]
[1723274811245,5.42201,2632.3,2632.0,0.06074686]
[1723274811446,3.52249,2632.3,2632.0,0.06074686]
[1723274813044,1.623,2632.3,2632.0,0.06074686]
[1723274815549,3.52248,2632.3,2632.0,0.06074686]
[1723274815769,1.89937,2632.5,2632.0,0.06074686]
[1723274816082,1.623,2632.3,2632.0,0.06074686]
[1723274816590,3.52248,2632.3,2632.0,0.06074686]
[1723274827320,1.89955,2632.2,2632.0,0.06074686]
[1723274827699,1.623,2632.3,2632.0,0.06074686]
[1723274828027,3.52249,2632.3,2632.0,0.06074686]
[1723274828222,4.1071417,2632.3,2632.0,0.06074686]
[1723274828802,0.59528524,2632.9,2632.3,1.89942]
[1723274829121,1.623,2633.0,2632.5,2.3374]
[1723274829321,1.623,2633.0,2632.5,2.8446362]
[1723274829520,1.623,2633.0,2632.6,1.95183585]
[1723274829726,1.623,2632.8,2632.6,1.95183585]
[1723274829971,1.623,2632.8,2632.6,0.05259585]
[1723274831235,1.89919,2632.7,2632.6,0.05259585]
[1723274831424,1.89926,2632.6,2632.1,1.89961]
[1723274831601,1.623,2632.4,2632.1,1.89961]
[1723274832133,1.623,2632.4,2632.0,0.07597726]
[1723274832336,1.623,2632.4,2631.9,4.3628693]
[1723274834037,1.623,2632.4,2632.1,1.89956]
[1723274834240,1.623,2632.6,2632.0,3.83482805]
[1723274834444,3.52226,2632.6,2632.0,1.93514805]
[1723274834951,3.52226,2632.6,2632.0,3.83479805]
[1723274835353,3.52226,2632.6,2632.0,1.93514805]
[1723274835811,3.52226,2632.6,2632.0,3.83478805]
[1723274836014,3.52226,2632.6,2632.0,1.93513805]
[1723274836741,1.623,2632.6,2632.0,1.93513805]
[1723274836940,1.623,2632.6,2632.2,1.89955]
[1723274837148,1.623,2632.6,2632.3,0.05045861]
[1723274837483,1.623,2632.6,2632.0,1.97561945]
[1723274837634,1.623,2632.6,2632.4,0.05040131]
[1723274837838,3.52227,2632.6,2632.0,1.97561945]
[1723274838039,3.52227,2632.6,2632.5,0.05039301]
[1723274838347,3.52227,2632.6,2632.0,1.97561945]
[1723274838848,3.52227,2632.6,2632.1,0.05042622]
[1723274839704,1.89913,2632.8,2632.1,0.49174877]
[1723274839906,1.623,2632.8,2632.7,1.89919]
[1723274840105,1.623,2632.8,2632.5,1.89932]
[1723274840345,1.623,2632.8,2632.7,0.0503764]
[1723274840545,1.623,2632.8,2632.6,0.0503847]
[1723274840751,1.623,2632.8,2632.7,0.0503764]
[1723274840919,1.623,2632.8,2632.3,1.89944]
[1723274841333,1.623,2632.8,2632.2,2.3374]
[1723274841334,1.8992,2632.7,2632.4,0.05040131]
[1723274841559,1.623,2632.6,2632.4,0.05040131]
[1723274841853,1.623,2632.6,2632.5,0.05039301]
[1723274842058,1.623,2632.6,2632.2,4.23694]
[1723274842263,1.623,2632.6,2632.5,0.05039301]
[1723274842424,1.623,2632.6,2632.2,4.3397606]
[1723274842759,1.623,2632.6,2632.5,0.05039301]
[1723274842924,1.623,2632.6,2632.2,2.4402206]
[1723274843122,1.623,2632.6,2632.5,0.05039301]
[1723274843321,1.623,2632.6,2632.3,0.1028206]
[1723274843526,0.786145,2632.6,2632.5,0.05039301]
[1723274843718,0.786145,2632.6,2632.4,0.05040131]
[1723274843959,0.786145,2632.6,2632.5,0.05039301]
[1723274844265,1.8994,2632.4,2632.3,0.1028206]
[1723274844770,1.623,2632.4,2632.3,0.1028206]
[1723274845622,1.623,2632.6,2632.3,0.1028206]
[1723274852054,1.623,2632.6,2632.4,0.04869255]
[1723274852268,4.064408,2632.6,2632.4,0.04869255]
[1723274853346,1.89933,2632.5,2632.4,0.04869255]
[1723274857265,4.33943,2632.5,2632.4,0.04869255]
[1723274858807,1.8994,2632.4,2632.3,0.1028206]
[1723274858962,4.3627968,2632.4,2632.3,0.1028206]
[1723274861801,4.3627968,2632.4,2632.3,0.15039273]
[1723274862600,6.2621968,2632.4,2632.3,0.15039273]
[1723274863087,6.2621968,2632.4,2632.3,0.1028206]
[1723274865904,4.3627968,2632.4,2632.3,0.1028206]
[1723274866081,1.623,2632.4,2632.3,0.1028206]
[1723274866393,1.623,2632.4,2632.3,0.15039273]
[1723274867106,3.5224,2632.4,2632.3,0.15039273]
[1723274867403,3.5224,2632.4,2632.3,0.1028206]
[1723274870205,1.623,2632.4,2632.3,0.1028206]
[1723274870404,9.5659,2633.1,2632.3,0.1028206]
[1723274870622,9.5659,2633.1,2632.3,0.15042106]
[1723274870623,1.623,2632.7,2632.3,0.15042106]
[1723274870907,1.623,2632.5,2632.3,0.1028206]
[1723274871411,1.623,2632.5,2632.4,0.04759216]
[1723274871613,1.623,2632.5,2632.3,0.1028206]
[1723274871971,3.52237,2632.5,2632.3,0.1028206]
[1723274872172,4.292128,2632.5,2632.3,0.1028206]
[1723274872727,1.8994,2632.4,2632.3,0.1028206]
[1723274873497,1.8994,2632.4,2632.3,0.15039982]
[1723274873696,1.8994,2632.4,2632.3,0.1028206]
[1723274874035,3.7988,2632.4,2632.3,0.14884731]
[1723274874309,4.6455398,2632.4,2632.3,0.14884731]
[1723274874714,4.6455398,2632.4,2632.3,0.1028206]
[1723274876589,2.7461398,2632.4,2632.3,0.1028206]
[1723274876777,4.3691398,2632.4,2632.3,0.1028206]
[1723274886933,4.3691398,2632.4,2632.3,0.14889684]
[1723274892001,2.4697398,2632.4,2632.3,0.14889684]
[1723274892200,4.3691398,2632.4,2632.3,0.14889684]
[1723274892507,3.5224,2632.4,2632.3,0.14889684]
[1723274893140,7.7777,2632.4,2632.3,0.14889684]
[1723274893438,8.3277,2632.4,2632.3,0.1028206]
[1723274894070,6.4283,2632.4,2632.3,0.1028206]
[1723274894255,7.261059,2632.4,2632.3,0.1028206]
[1723274896958,4.355159,2632.4,2632.3,0.1028206]
[1723274897473,4.355159,2632.4,2632.3,0.14901711]
[1723274899276,4.905159,2632.4,2632.3,0.1028206]
[1723274900765,3.282159,2632.4,2632.3,0.1028206]
[1723274901035,1.623,2632.4,2632.3,0.1028206]
[1723274901343,1.623,2632.4,2632.3,0.14903833]
[1723274902157,3.5224,2632.4,2632.3,0.14903833]
[1723274903564,3.5224,2632.4,2632.3,0.1028206]
[1723274903746,3.5224,2632.4,2632.3,0.14903833]
[1723274903947,4.064578,2632.4,2632.3,0.14903833]
[1723274905107,5.963978,2632.4,2632.3,0.14903833]
[1723274905550,5.963978,2632.4,2632.3,0.1028206]
[1723274906871,5.963978,2632.4,2632.3,0.14903833]
[1723274907173,6.513978,2632.4,2632.3,0.1028206]
[1723274912769,0.59529047,2632.8,2632.3,2.4012206]
[1723274913102,1.623,2633.5,2632.9,2.2984]
[1723274913250,1.623,2633.5,2633.1,1.89888]
[1723274913450,1.623,2633.5,2633.2,1.89882]
[1723274913691,1.623,2633.5,2633.3,1.89875]
[1723274913856,1.623,2633.8,2633.4,4.19707]
[1723274914049,1.623,2633.8,2633.5,0.07593555]
[1723274914248,1.623,2633.8,2633.5,2.01980514]
[1723274915644,1.623,2633.8,2633.5,0.12120514]
[1723274917407,1.623,2633.8,2633.5,0.04526959]
[1723274917775,1.623,2633.6,2633.5,0.04526959]
[1723274918175,3.52154,2633.6,2633.5,0.04526959]
[1723274918375,1.623,2633.6,2633.5,0.04526959]
[1723274918686,1.623,2633.6,2633.5,0.04377777]
[1723274918894,1.623,2633.6,2633.1,2.2984]
[1723274919193,1.623,2633.6,2633.5,0.04377777]
[1723274919363,1.623,2633.6,2633.2,0.419736]
[1723274919566,1.89847,2633.7,2633.5,0.04377777]
[1723274919802,1.89847,2633.7,2633.2,0.419736]
[1723274919803,1.623,2633.6,2633.2,0.419736]
[1723274920889,1.623,2633.4,2633.1,2.2984]
[1723274921998,1.623,2633.2,2633.1,2.2984]
[1723274922408,1.623,2633.2,2632.9,2.2984]
[1723274922574,1.623,2633.2,2633.0,0.419751]
[1723274925619,1.623,2633.4,2633.0,0.419751]
[1723274926721,3.52168,2633.4,2633.0,0.419751]
[1723274927249,1.89867,2633.5,2632.4,4.37854]
[1723274927250,1.89898,2633.0,2632.4,4.37854]
[1723274927523,3.52198,2633.0,2632.4,4.37854]
[1723274927890,3.52198,2633.0,2632.4,2.4792]
[1723274928090,5.42101,2633.0,2632.4,2.4792]
[1723274928319,1.89904,2632.9,2632.4,2.4792]
[1723274928490,1.89904,2632.9,2632.4,3.11730106]
[1723274931839,3.52216,2632.8,2632.3,0.1028206]
[1723274932048,3.52216,2632.8,2632.4,2.4792]
[1723274934071,1.89919,2632.7,2632.4,2.4792]
[1723274934355,1.89926,2632.6,2632.3,0.1028206]
[1723274934744,3.52216,2632.8,2632.3,0.1028206]
[1723274935756,1.89916,2632.8,2632.3,0.1028206]
[1723274935936,3.52216,2632.8,2632.3,0.1028206]
[1723274937068,3.52216,2632.8,2632.3,2.0022806]
[1723274937360,3.52201,2633.0,2632.4,4.37855]
[1723274938369,1.623,2633.0,2632.5,1.89928]
[1723274940067,1.623,2633.0,2632.6,1.89925]
[1723274940269,1.623,2633.0,2632.6,2.53462672]
[1723274940477,1.623,2633.0,2632.6,2.61059535]
[1723274941169,1.623,2633.0,2632.6,0.71134535]
[1723274941342,1.623,2633.0,2632.6,0.63537672]
[1723274942067,1.623,2633.0,2632.7,0.04385683]
[1723274942728,1.623,2632.8,2632.4,2.4792]
[1723274947662,1.623,2632.6,2632.3,0.1028206]
[1723274947862,3.5223,2632.6,2632.3,0.1028206]
[1723274948346,5.8012,2632.4,2632.3,0.1028206]
[1723274948543,6.571258,2632.4,2632.3,0.1028206]
[1723274948933,2.393058,2632.4,2632.3,0.1028206]
[1723274949137,1.623,2632.4,2632.3,0.14535891]
[1723274949328,3.5224,2632.4,2632.3,0.14535891]
[1723274950274,1.89923,2632.7,2632.3,0.14535891]
[1723274950471,1.623,2632.6,2632.3,0.1028206]
[1723274950674,1.623,2632.6,2632.3,2.3658206]
[1723274950851,1.623,2632.6,2632.4,0.04253001]
[1723274951543,3.52227,2632.6,2632.4,0.04253001]
[1723274951944,1.89933,2632.5,2632.4,0.04253001]
[1723274952150,3.52226,2632.6,2632.4,0.04253001]
[1723274952346,5.773796,2632.6,2632.4,0.04253001]
[1723274952938,1.89933,2632.5,2632.4,0.04253001]
[1723274953572,4.17813,2632.5,2632.4,0.04253001]
[1723274953937,1.8994,2632.4,2632.3,0.1028206]
[1723274954141,1.623,2632.4,2632.3,0.1028206]
[1723274956997,3.5224,2632.4,2632.3,0.1028206]
[1723274957177,3.5224,2632.4,2632.3,0.14535891]
[1723274957959,5.4218,2632.4,2632.3,0.14535891]
[1723274958179,5.4218,2632.4,2632.3,0.1028206]
[1723274958345,6.19186,2632.4,2632.3,0.1028206]
[1723274958545,4.29246,2632.4,2632.3,0.1028206]
[1723274958782,1.623,2632.4,2632.3,0.1028206]
[1723274958965,1.623,2632.5,2632.3,0.1028206]
[1723274959575,1.623,2632.5,2632.4,0.04292551]
[1723274963379,3.52233,2632.5,2632.4,0.04292551]
[1723274963578,4.30829,2632.5,2632.4,0.04292551]
[1723274963768,6.20762,2632.5,2632.4,0.04292551]
[1723274963974,1.8994,2632.4,2632.3,0.1028206]
[1723274964349,1.8994,2632.4,2632.3,0.14575441]
[1723274966583,2.763969,2632.4,2632.3,0.14575441]
[1723274967287,0.864569,2632.4,2632.3,0.14575441]
[1723274967471,3.52233,2632.5,2632.3,0.14575441]
[1723274968891,1.8994,2632.4,2632.3,0.14575441]
[1723274972914,3.52233,2632.5,2632.3,0.14575441]
[1723274973202,1.89933,2632.5,2632.3,0.14575441]
[1723274973408,1.623,2632.4,2632.3,0.14575441]
[1723274973907,0.59526703,2632.9,2632.3,0.14575441]
[1723274974113,0.59526703,2632.9,2632.5,1.89927]
[1723274974418,1.623,2633.2,2632.8,4.28431]
[1723274974577,0.59513451,2633.7,2633.4,1.89863]
[1723274974784,1.89823,2634.1,2633.4,1.89863]
[1723274975028,1.623,2633.7,2633.5,0.04303901]
[1723274975810,1.623,2633.7,2633.2,1.89881]
[1723274976014,1.623,2633.5,2633.2,2.517108]
[1723274977728,1.89845,2633.8,2633.2,2.517108]
[1723274977885,1.89845,2633.8,2633.2,1.89881]
[1723274978086,1.89845,2633.8,2633.1,2.3852]
[1723274978312,1.89853,2633.7,2633.1,2.3852]
[1723274978508,1.89853,2633.7,2633.1,4.2841]
[1723274980932,1.89845,2633.8,2633.2,1.89882]
[1723274981229,1.89845,2633.8,2633.2,2.517114]
[1723274982843,3.79691,2633.8,2633.2,2.517114]
[1723274983041,3.79691,2633.8,2633.2,1.89882]
[1723274983496,1.89847,2633.7,2633.1,2.3852]
[1723274984631,1.89847,2633.7,2633.1,4.28409]
[1723274985348,1.89847,2633.7,2632.6,2.33324596]
[1723274985349,2.4166,2633.6,2632.6,0.43401596]
[1723274985552,1.89884,2633.2,2632.6,1.89924]
[1723274986343,1.89884,2633.2,2632.6,1.89921]
[1723274987001,1.89884,2633.2,2632.7,0.0379781]
[1723274988551,1.89892,2633.1,2632.7,0.0379781]
[1723274988719,1.89902,2633.0,2632.7,0.0379781]
[1723274988918,1.89902,2633.0,2632.4,4.36907]
[1723274989121,1.89902,2633.0,2632.8,0.03702757]
[1723274989347,1.89902,2633.0,2632.4,4.36907]
[1723274989515,1.89902,2633.0,2632.9,0.03701927]
[1723274989710,1.89904,2632.9,2632.3,2.0022306]
[1723274989915,1.89904,2632.9,2632.4,1.89939]
[1723274990263,1.89904,2632.9,2632.4,1.93645078]
[1723274992955,1.89904,2632.9,2632.4,0.03706078]
[1723274994064,1.89932,2632.6,2632.4,0.03706078]
[1723274995363,9.1888,2633.3,2632.6,3.79844]
[1723274995565,7.29,2633.3,2632.7,0.11284076]
[1723274995767,7.29,2633.3,2632.9,1.89902]
[1723274996127,7.29,2633.3,2633.0,0.03753232]
[1723274997879,7.29,2633.3,2632.8,4.44470365]
[1723274998043,7.29,2633.3,2633.1,0.03752402]
[1723274998228,7.29,2633.3,2632.8,4.44470365]
[1723274998429,7.29,2633.3,2632.8,6.97816702]
[1723274998733,1.89861,2633.5,2632.9,1.93658062]
[1723274998932,1.89861,2633.5,2632.9,1.89904]
[1723274999152,1.89868,2633.4,2632.9,1.89904]
[1723274999567,1.89868,2633.4,2633.0,0.03753232]
[1723275003248,1.89857,2633.6,2633.0,0.03753232]
[1723275003445,3.79716,2633.6,2633.0,0.03753232]
[1723275003832,1.89861,2633.5,2633.0,0.03753232]
[1723275004051,1.89857,2633.6,2633.0,0.03753232]
[1723275004251,3.79717,2633.6,2633.0,0.03753232]
[1723275004565,1.89857,2633.6,2633.0,0.03753232]
[1723275004942,1.89857,2633.6,2633.0,1.93649232]
[1723275005285,1.89857,2633.6,2633.2,2.4477]
[1723275005469,5.79043,2633.8,2633.2,2.4477]
[1723275005470,1.89843,2633.8,2633.2,2.4477]
[1723275005627,1.89832,2633.9,2633.3,1.8987]
[1723275005833,1.89832,2633.9,2633.2,2.52364449]
[1723275006034,1.89844,2633.8,2633.2,3.19788689]
[1723275006234,1.89844,2633.8,2633.2,5.09666689]
[1723275007072,1.89844,2633.8,2633.3,1.89873]
[1723275007307,3.80157,2634.0,2633.3,1.89873]
[1723275007492,3.80157,2634.0,2633.3,1.89871]
[1723275007493,1.90327,2634.0,2633.3,1.89871]
[1723275007688,1.90327,2634.0,2633.4,1.89864]
[1723275007890,1.89834,2633.9,2633.3,1.89871]
[1723275008305,1.90327,2634.0,2633.2,3.1219424]
[1723275008306,1.89844,2633.8,2633.2,3.1219424]
[1723275008609,1.89844,2633.8,2633.2,4.34652]
[1723275010871,1.89847,2633.7,2633.2,4.34652]
[1723275011069,1.89844,2633.8,2633.2,4.34652]
[1723275012204,1.89844,2633.8,2633.2,6.2453]
[1723275012367,1.89834,2633.9,2633.3,1.89872]
[1723275012567,1.8984,2633.8,2633.2,4.97764222]
[1723275012767,1.8984,2633.8,2633.2,5.02309246]
[1723275013795,1.622,2633.7,2633.2,4.97763222]
[1723275014923,1.89856,2633.6,2633.0,4.38418232]
[1723275015070,1.89856,2633.6,2633.0,2.48523232]
[1723275015071,1.622,2633.5,2633.0,2.48523232]
[1723275015405,1.89869,2633.4,2633.0,0.03753232]
[1723275015614,1.622,2633.5,2633.0,0.03753232]
[1723275015906,1.622,2633.5,2633.1,0.03603048]
[1723275016271,3.52063,2633.5,2633.1,0.03603048]
[1723275018184,3.52063,2633.5,2632.8,4.34677]